bitfinex-derivatives/quotes_SOLF0:USTF0_20250905
["timestamp","ask_amount","ask_price","bid_price","bid_amount"]
[1757080148265,5.3,209.56,209.42,7.85]
[1757080148862,5.3,209.56,209.41,7.85]
[1757080149763,8.87667194,209.62,209.42,66.8325]
[1757080149967,8.87667194,209.62,209.48,7.85]
[1757080150468,5.3,209.63,209.48,7.85]
[1757080151063,5.3,209.63,209.48,133.09]
[1757080151562,5.3,209.63,209.48,125.24]
[1757080151762,5.3,209.63,209.49,7.85]
[1757080152664,5.3,209.63,209.51,4.2944]
[1757080152865,5.3,209.63,209.49,7.85]
[1757080153066,5.3,209.61,209.49,7.85]
[1757080153264,14.17667194,209.66,209.49,7.85]
[1757080153861,14.17667194,209.66,209.54,7.85]
[1757080154062,5.3,209.66,209.54,7.85]
[1757080154267,80.19301493,209.7,209.54,7.85]
[1757080154769,80.19301493,209.7,209.55,7.85]
[1757080154972,10.58396258,209.71,209.55,7.85]
[1757080156069,10.58396258,209.71,209.58,4.2931]
[1757080156274,10.58396258,209.71,209.59,7.85]
[1757080156470,10.58396258,209.71,209.52,8.87667194]
[1757080156674,5.3,209.69,209.55,4.2937]
[1757080157171,5.3,209.69,209.59,4.2927]
[1757080157371,5.3,209.69,209.56,79.19]
[1757080157575,5.3,209.69,209.57,7.85]
[1757080157873,5.28396258,209.71,209.57,7.85]
[1757080158073,5.28396258,209.71,209.6,4.2927]
[1757080158271,5.28396258,209.71,209.61,8.04]
[1757080158470,0.03114885,209.68,209.63,0.03190524]
[1757080160270,0.03114885,209.68,209.64,8.04]
[1757080160469,0.03114885,209.68,209.63,66.79790524]
[1757080160669,0.03114885,209.68,209.63,0.03190524]
[1757080160871,0.03114885,209.68,209.66,4.2913]
[1757080161066,0.03114885,209.68,209.67,8.04]
[1757080161677,0.03114885,209.68,209.67,8.52]
[1757080162275,0.03114885,209.68,209.67,8.04]
[1757080162476,0.03114885,209.68,209.67,8.52]
[1757080163576,5.28396258,209.79,209.67,8.52]
[1757080163874,5.28396258,209.79,209.67,8.04]
[1757080164276,14.18667194,209.84,209.67,8.04]
[1757080164277,14.18667194,209.84,209.68,53.84]
[1757080164477,14.18667194,209.84,209.69,101.3]
[1757080164677,14.18667194,209.84,209.71,0.03486752]
[1757080165072,14.18667194,209.84,209.69,124.84]
[1757080165271,5.31,209.84,209.75,0.03076285]
[1757080168378,14.18667194,209.84,209.75,0.03076285]
[1757080169484,5.31,209.84,209.75,0.03076285]
[1757080169984,5.28396258,209.88,209.76,8.04]
[1757080170570,5.31,209.89,209.8,0.03603074]
[1757080171175,5.31,209.94,209.8,8.07603074]
[1757080171372,5.31,209.94,209.8,132.87603074]
[1757080171572,5.28396258,209.95,209.81,8.04]
[1757080171772,5.28396258,209.95,209.86,8.04]
[1757080175876,5.28396258,209.95,209.85,0.03127597]
[1757080176084,5.31,209.94,209.85,0.03127597]
[1757080180383,14.18667194,209.94,209.85,0.03127597]
[1757080180880,8.87667194,209.9,209.85,0.03127597]
[1757080181085,5.31,209.89,209.85,0.03127597]
[1757080181286,5.31,209.89,209.76,8.04]
[1757080181479,8.87667194,209.9,209.85,0.03504332]
[1757080181885,5.31,209.88,209.76,8.04]
[1757080182086,5.31,209.88,209.85,0.03157312]
[1757080182480,5.31,209.88,209.76,8.04]
[1757080182681,5.31,209.88,209.84,0.03519634]
[1757080182986,5.31,209.93,209.84,0.03519634]
[1757080185889,5.31,209.98,209.84,0.03519634]
[1757080186188,5.31,209.98,209.85,8.04]
[1757080186583,5.31,209.98,209.89,0.03066029]
[1757080187592,5.31,209.98,209.89,8.07066029]
[1757080188685,5.31,209.98,209.89,0.03066029]
[1757080192689,8.87667194,209.95,209.89,0.03066029]
[1757080192989,8.87667194,209.95,209.73,7.68]
[1757080193188,5.28,209.9,209.73,7.68]
[1757080193390,5.28,209.9,209.73,126.4]
[1757080193591,5.28,209.9,209.78,7.68]
[1757080195386,5.28,209.9,209.78,11.9689]
[1757080195795,5.28,209.9,209.78,7.68]
[1757080196090,5.28,209.89,209.73,7.68]
[1757080196291,5.28,209.86,209.82,0.03300604]
[1757080196795,5.28,209.86,209.73,7.68]
[1757080196995,5.28,209.86,209.82,0.03656483]
[1757080197190,5.28,209.88,209.73,132.32]
[1757080197390,5.28,209.88,209.82,0.03374027]
[1757080197596,5.28,209.85,209.82,0.03374027]
[1757080197796,14.36,210.03,209.82,0.03374027]
[1757080198094,5.28,209.93,209.83,7.68]
[1757080198301,5.28,209.93,209.73,7.68]
[1757080198500,5.25,209.89,209.77,7.68]
[1757080199305,5.25,209.85,209.72,314.88]
[1757080199595,5.51635119,209.89,209.75,4.2895]
[1757080199895,0.03029106,209.81,209.76,7.68]
[1757080200289,0.03029106,209.81,209.76,4.2893]
[1757080200497,0.03029106,209.81,209.73,66.7345]
[1757080200702,0.03029106,209.81,209.76,7.68]
[1757080200996,0.03029106,209.81,209.76,4.2893]
[1757080201195,0.03029106,209.81,209.75,5.51635119]
[1757080201395,0.03029106,209.81,209.76,7.68]
[1757080201600,0.03029106,209.81,209.75,5.51635119]
[1757080201800,0.03029106,209.81,209.74,7.68]
[1757080202396,0.03029106,209.81,209.69,11.63926527]
[1757080202596,0.03029106,209.81,209.73,3.95926527]
[1757080204201,0.03029106,209.81,209.74,7.68]
[1757080205804,0.03029106,209.81,209.73,3.95926527]
[1757080206298,5.25,209.8,209.73,3.95926527]
[1757080206493,5.25,209.77,209.73,3.95926527]
[1757080206893,5.51635119,209.78,209.73,3.95926527]
[1757080207203,5.54664225,209.81,209.73,3.95926527]
[1757080207702,0.03029106,209.81,209.73,3.95926527]
[1757080208000,0.03029106,209.81,209.72,7.68]
[1757080208793,0.03029106,209.81,209.74,4.2897]
[1757080208997,0.03029106,209.81,209.75,7.68]
[1757080210000,0.03029106,209.81,209.8,7.68]
[1757080211001,0.03029106,209.81,209.8,8.16]
[1757080211998,5.28396258,209.93,209.81,4.2883]
[1757080212194,5.28396258,209.93,209.82,7.68]
[1757080212603,5.28396258,209.93,209.85,7.68]
[1757080213205,5.28,209.97,209.85,7.68]
[1757080213908,5.28,209.97,209.86,4.2873]
[1757080214402,5.28,209.97,209.85,7.68]
[1757080215310,5.28,209.92,209.77,132.3]
[1757080215505,5.28,209.92,209.77,7.68]
[1757080215700,5.28,209.88,209.77,7.68]
[1757080216500,5.28,209.88,209.77,11.63926527]
[1757080216804,5.28,209.88,209.77,15.92846527]
[1757080217504,5.51635119,209.91,209.79,7.68]
[1757080218007,5.51635119,209.91,209.81,4.2883]
[1757080218403,5.51635119,209.91,209.82,8.07]
[1757080218907,5.28,209.93,209.82,8.07]
[1757080219299,5.51635119,209.95,209.82,8.07]
[1757080220008,5.29,209.94,209.82,8.07]
[1757080220212,5.29,209.94,209.82,12.3582]
[1757080220810,5.51635119,209.93,209.82,8.07]
[1757080221400,5.29,209.92,209.78,3.95926527]
[1757080221606,5.51635119,209.89,209.78,3.95926527]
[1757080221904,5.29,209.84,209.78,3.95926527]
[1757080222101,5.29,209.9,209.78,3.95926527]
[1757080222302,0.03095251,209.86,209.81,0.03428768]
[1757080222611,5.29,209.85,209.81,0.03428768]
[1757080223407,0.03095251,209.86,209.81,0.03428768]
[1757080223605,0.03095251,209.86,209.82,8.07]
[1757080223802,0.03095251,209.86,209.81,8.10428768]
[1757080224406,0.03095251,209.86,209.82,8.07]
[1757080224605,0.03095251,209.86,209.81,0.03428768]
[1757080225302,0.03095251,209.86,209.82,8.07]
[1757080226213,0.03095251,209.86,209.83,4.288]
[1757080226409,0.03095251,209.86,209.84,8.07]
[1757080227113,0.03095251,209.86,209.81,0.03428768]
[1757080227414,0.03095251,209.86,209.82,8.07]
[1757080228216,0.03095251,209.86,209.81,0.03428768]
[1757080228513,0.03095251,209.86,209.81,8.10428768]
[1757080228911,0.03095251,209.86,209.82,8.07]
[1757080229310,0.03095251,209.86,209.81,0.03428768]
[1757080229508,0.03095251,209.86,209.82,8.07]
[1757080229711,0.03095251,209.86,209.81,0.03428768]
[1757080229911,5.29,209.85,209.81,0.03428768]
[1757080230408,0.03095251,209.86,209.81,0.03428768]
[1757080231607,0.03095251,209.86,209.81,8.10428768]
[1757080231814,0.03095251,209.86,209.81,0.03428768]
[1757080232411,0.03095251,209.86,209.82,8.07]
[1757080232815,0.03095251,209.86,209.81,0.03428768]
[1757080233012,5.29,209.85,209.81,0.03428768]
[1757080233212,0.03095251,209.86,209.81,0.03428768]
[1757080233412,5.29,209.85,209.81,0.03428768]
[1757080234009,5.5473037,209.86,209.81,0.03428768]
[1757080234511,5.29,209.85,209.81,0.03428768]
[1757080235315,0.03095251,209.86,209.81,0.03428768]
[1757080235510,5.29,209.85,209.81,0.03428768]
[1757080235717,0.03095251,209.86,209.81,0.03428768]
[1757080236015,0.03095251,209.86,209.81,8.10428768]
[1757080237009,0.03095251,209.86,209.82,8.07]
[1757080237813,0.03095251,209.86,209.81,4.32268768]
[1757080238014,0.03095251,209.86,209.82,8.07]
[1757080238320,0.03095251,209.86,209.82,4.288]
[1757080238514,0.03095251,209.86,209.81,0.03428768]
[1757080238713,0.03095251,209.86,209.82,8.07]
[1757080239117,5.32095251,209.86,209.81,0.03428768]
[1757080239317,5.29,209.85,209.81,0.03428768]
[1757080241028,0.03095251,209.86,209.81,0.03428768]
[1757080241324,0.03095251,209.86,209.82,8.07]
[1757080241619,0.03095251,209.86,209.81,0.03428768]
[1757080242613,0.03095251,209.86,209.81,4.32248768]
[1757080242818,0.03095251,209.86,209.82,8.07]
[1757080243019,0.03095251,209.86,209.81,0.03428768]
[1757080243224,0.03095251,209.86,209.84,8.07]
[1757080243415,0.03095251,209.86,209.83,8.07]
[1757080243621,5.28396258,209.93,209.83,8.55]
[1757080243823,5.28396258,209.93,209.87,66.6873]
[1757080244326,5.28396258,209.93,209.91,8.07]
[1757080244521,5.28396258,209.93,209.9,4.2864]
[1757080244828,5.28396258,209.93,209.79,8.07]
[1757080245023,5.28396258,209.93,209.89,0.03247947]
[1757080245220,5.28396258,209.93,209.86,8.07]
[1757080245528,5.28396258,209.93,209.89,0.03028828]
[1757080246326,5.32,209.92,209.89,0.03028828]
[1757080247731,5.51635119,209.96,209.89,0.03028828]
[1757080247938,5.32,209.97,209.89,0.03028828]
[1757080248931,5.51635119,209.96,209.89,0.03028828]
[1757080249330,5.51635119,209.96,209.84,7.58]
[1757080249528,5.31,209.98,209.84,7.58]
[1757080249732,5.31,209.98,209.9,0.03403131]
[1757080250440,5.28396258,210.04,209.92,7.58]
[1757080250839,5.31,210.03,209.86,108.6673]
[1757080251136,10.59396258,210.03,209.96,0.03377094]
[1757080251539,5.51635119,210.01,209.96,0.03377094]
[1757080251738,5.31,210.02,209.96,0.03377094]
[1757080252240,5.51635119,210.01,209.86,7.58]
[1757080252439,5.31,210.02,209.86,7.58]
[1757080252936,5.31,210.02,209.86,11.8673]
[1757080253133,5.31,210.0,209.86,7.58]
[1757080253332,5.31,210.0,209.83,306.96]
[1757080253829,5.31,210.0,209.84,7.58]
[1757080254033,5.51635119,210.01,209.84,7.58]
[1757080254235,5.31,210.0,209.84,7.58]
[1757080254638,5.31,210.0,209.85,4.2876]
[1757080254838,5.31,210.0,209.86,7.58]
[1757080255030,5.31,210.0,209.86,74.2726]
[1757080255227,5.31,210.0,209.89,4.2867]
[1757080255432,5.31,210.0,209.89,13.09635119]
[1757080255741,5.28396258,210.02,209.94,7.58]
[1757080256740,5.28396258,210.02,209.9,9.80275119]
[1757080256941,5.28396258,210.02,209.9,17.38275119]
[1757080257135,5.28396258,210.02,209.92,4.2861]
[1757080257535,5.28396258,210.02,209.9,7.58]
[1757080258230,5.28396258,210.02,209.91,4.2862]
[1757080258540,5.31,210.01,209.9,7.58]
[1757080260538,5.28396258,210.02,209.9,7.58]
[1757080261041,5.31,210.02,209.9,7.58]
[1757080261936,8.85226281,210.02,209.83,310.91926527]
[1757080262338,5.31,210.01,209.91,7.58]
[1757080263242,5.28396258,210.05,209.91,11.8662]
[1757080263438,5.28396258,210.05,209.91,7.58]
[1757080263632,5.28396258,210.05,209.92,4.286]
[1757080263839,5.28396258,210.05,209.91,7.58]
[1757080265038,5.31,210.04,209.91,7.58]
[1757080265244,5.28396258,210.05,209.91,7.58]
[1757080265542,5.31,210.04,209.91,7.58]
[1757080265939,5.28396258,210.05,209.91,7.58]
[1757080266138,5.31,210.03,209.87,11.8671]
[1757080266745,5.31,210.03,209.87,7.58]
[1757080267245,5.31,210.03,209.9,7.58]
[1757080268238,5.31,210.03,209.9,11.8665]
[1757080268439,5.31,210.03,209.9,7.58]
[1757080268638,10.59396258,210.07,209.91,7.58]
[1757080269741,5.31,210.06,209.91,7.58]
[1757080269943,5.31,210.06,209.91,11.8662]
[1757080270142,5.31,210.06,209.91,7.58]
[1757080272143,5.31,210.06,209.92,66.6737]
[1757080272349,10.59396258,210.07,209.93,7.58]
[1757080273043,5.31,210.07,209.93,7.58]
[1757080273246,5.31,210.07,209.98,4.2849]
[1757080273749,11.42301762,210.12,209.98,4.2849]
[1757080274347,11.42301762,210.12,209.97,7.58]
[1757080274946,5.31,210.11,209.97,11.865]
[1757080275146,5.31,210.11,209.97,7.58]
[1757080275852,5.31,210.11,209.97,11.865]
[1757080277350,5.31,210.11,209.97,7.58]
[1757080277853,5.31,210.11,209.97,11.8651]
[1757080278041,5.31,210.11,209.97,7.58]
[1757080278851,5.31,210.11,210.0,7.57]
[1757080279144,10.59396258,210.15,210.0,66.6484]
[1757080279447,10.59396258,210.15,210.04,11.8537]
[1757080279850,10.59396258,210.15,210.04,7.57]
[1757080280249,5.28396258,210.15,210.04,7.57]
[1757080281252,5.28396258,210.15,210.02,7.57]
[1757080281654,10.59396258,210.15,210.02,7.57]
[1757080282353,10.59396258,210.15,210.0,7.57]
[1757080283250,5.28396258,210.15,210.0,66.6483]
[1757080283451,5.28396258,210.15,210.06,7.57]
[1757080284347,5.31,210.12,210.01,7.57]
[1757080284552,0.03305534,210.13,210.08,0.03179891]
[1757080284750,5.31,210.14,210.08,0.03179891]
[1757080285353,5.31,210.12,210.08,0.03179891]
[1757080285948,0.03010544,210.13,210.09,7.57]
[1757080286558,5.31,210.12,210.08,0.03179891]
[1757080288157,0.03010544,210.13,210.08,7.60179891]
[1757080288357,5.34010544,210.13,210.08,0.03179891]
[1757080289760,0.03010544,210.13,210.08,7.60179891]
[1757080289956,0.03010544,210.13,210.09,7.57]
[1757080290162,5.34010544,210.13,210.08,0.03179891]
[1757080290760,0.03010544,210.13,210.08,7.60179891]
[1757080291658,0.03010544,210.13,210.08,0.03179891]
[1757080291865,5.31,210.12,210.08,0.03179891]
[1757080293363,0.03010544,210.13,210.08,7.60179891]
[1757080293559,5.34010544,210.13,210.08,7.60179891]
[1757080294264,0.03010544,210.13,210.09,7.57]
[1757080295464,0.03010544,210.13,210.08,0.03179891]
[1757080295854,5.31,210.12,210.08,0.03179891]
[1757080296364,8.85226281,210.1,209.97,7.57]
[1757080296764,5.28,210.09,209.97,7.57]
[1757080297062,5.28,210.2,209.97,7.57]
[1757080297263,5.28,210.13,209.97,11.855]
[1757080297462,5.28,210.13,209.97,7.57]
[1757080297668,0.03207705,210.07,209.97,7.57]
[1757080298064,5.28,210.06,209.97,7.57]
[1757080299166,0.03207705,210.07,209.97,7.57]
[1757080299471,0.03207705,210.07,209.98,7.57]
[1757080299969,5.28,210.14,209.98,7.57]
[1757080300169,0.03261095,210.05,209.98,7.57]
[1757080303873,3.49343362,210.13,210.01,11.06343362]
[1757080304072,3.49343362,210.13,210.03,4.2837]
[1757080304376,3.49343362,210.13,210.02,7.57]
[1757080304674,3.49343362,210.13,210.03,4.2837]
[1757080304874,3.49343362,210.13,210.02,7.57]
[1757080305071,8.80343362,210.1,210.02,7.57]
[1757080305375,8.80343362,210.1,209.97,7.57]
[1757080305876,3.49343362,210.07,209.97,7.57]
[1757080306369,3.49343362,210.04,209.97,7.57]
[1757080306769,3.49343362,210.01,209.93,3.95926527]
[1757080307077,3.49343362,209.98,209.93,3.95926527]
[1757080307272,0.0329769,209.99,209.96,7.57]
[1757080307464,0.0329769,209.99,209.95,0.03070458]
[1757080307670,3.49343362,210.04,209.94,7.57]
[1757080307876,5.31,210.06,209.94,11.06343362]
[1757080309074,5.31,210.06,209.95,7.29]
[1757080309972,3.49343362,210.07,209.95,7.29]
[1757080310277,3.49343362,210.1,209.99,7.29]
[1757080310475,8.82343362,210.11,209.99,7.29]
[1757080310974,3.49343362,210.08,209.99,7.29]
[1757080311170,3.49343362,210.05,209.95,4.2855]
[1757080311378,3.49343362,210.05,209.94,7.29]
[1757080312272,3.49343362,210.02,209.94,7.29]
[1757080313071,5.33,210.01,209.92,3.95926527]
[1757080313274,3.49343362,209.98,209.92,3.95926527]
[1757080314074,5.33,210.01,209.92,3.95926527]
[1757080314578,3.49343362,210.02,209.93,7.29]
[1757080316080,8.82343362,210.02,209.93,7.29]
[1757080316381,5.33,210.02,209.93,7.29]
[1757080316676,5.33,210.06,209.94,4.2857]
[1757080316877,3.49343362,210.04,209.94,4.2857]
[1757080317182,3.49343362,210.04,209.93,7.29]
[1757080317672,3.49343362,210.04,209.94,4.2858]
[1757080318377,3.49343362,210.02,209.93,7.29]
[1757080318679,8.82343362,210.02,209.89,3.49343362]
[1757080318879,3.49343362,209.99,209.88,7.29]
[1757080319374,5.33,210.02,209.9,4.2864]
[1757080319575,2.03359957,209.98,209.92,7.29]
[1757080320080,2.03359957,209.99,209.92,7.29]
[1757080320280,10.61396258,210.07,209.93,2.03359957]
[1757080320586,2.03359957,210.0,209.93,2.03359957]
[1757080320777,2.03359957,210.02,209.95,2.03359957]
[1757080321279,2.03359957,210.02,209.94,7.29]
[1757080321476,2.03359957,209.97,209.9,7.29]
[1757080321679,5.33,210.07,209.93,9.32359957]
[1757080321884,2.03359957,210.01,209.93,7.29]
[1757080322181,2.03359957,210.01,209.94,2.03359957]
[1757080322876,2.03359957,210.02,209.95,7.29]
[1757080323484,5.33,210.04,209.95,7.29]
[1757080323680,2.03359957,210.03,209.96,2.03359957]
[1757080323878,5.28396258,210.08,209.99,7.29]
[1757080324082,2.03359957,210.05,209.99,7.29]
[1757080324283,2.03359957,210.03,209.99,7.29]
[1757080324487,2.03359957,210.01,209.92,7.29]
[1757080324780,5.33,210.05,209.94,2.03359957]
[1757080324980,2.03359957,210.05,209.98,2.03359957]
[1757080325374,2.03359957,210.08,210.0,9.32359957]
[1757080325774,2.03359957,210.06,210.0,9.32359957]
[1757080325975,2.03359957,210.06,209.98,2.03359957]
[1757080326281,2.03359957,210.06,209.99,7.29]
[1757080326481,2.03359957,210.04,209.99,7.29]
[1757080326887,2.03359957,210.04,209.97,9.32359957]
[1757080327081,5.33,210.07,209.97,9.32359957]
[1757080327285,2.03359957,210.05,209.97,9.32359957]
[1757080327585,2.03359957,210.01,209.95,7.29]
[1757080327779,2.03359957,210.04,209.96,2.03359957]
[1757080328182,5.33,210.07,209.96,2.03359957]
[1757080328375,2.03359957,210.05,209.98,2.03359957]
[1757080328983,5.33,210.07,209.98,2.03359957]
[1757080329185,2.03359957,210.04,209.98,2.03359957]
[1757080329376,7.36359957,210.02,209.95,2.03359957]
[1757080329781,5.33,209.97,209.93,3.95926527]
[1757080329984,2.03359957,209.96,209.93,3.95926527]
[1757080330189,7.36359957,209.96,209.93,3.95926527]
[1757080330481,2.03359957,209.96,209.93,3.95926527]
[1757080330688,7.36359957,209.96,209.93,3.95926527]
[1757080330987,2.03359957,209.94,209.93,3.95926527]
[1757080331789,7.36359957,209.94,209.93,3.95926527]
[1757080331979,5.33,209.99,209.93,3.95926527]
[1757080332184,2.03359957,209.94,209.93,3.95926527]
[1757080332384,7.36359957,209.94,209.93,3.95926527]
[1757080332887,5.33,209.94,209.93,3.95926527]
[1757080333088,2.03359957,209.94,209.93,3.95926527]
[1757080333290,5.33,210.01,209.93,3.95926527]
[1757080333484,124.0,210.07,209.87,7.82568007]
[1757080333485,5.33,210.06,209.87,7.82568007]
[1757080333692,2.03359957,209.88,209.82,10.34973261]
[1757080333989,124.0,209.87,209.66,7.29]
[1757080334191,2.03359957,209.71,209.6,7.29]
[1757080334588,6.56031466,209.71,209.55,33.87475106]
[1757080334889,2.03359957,209.65,209.55,26.58475106]
[1757080335087,7.75736665,209.64,209.55,26.58475106]
[1757080335288,2.03359957,209.56,209.55,26.58475106]
[1757080335483,2.03359957,209.56,209.47,34.5581184]
[1757080335786,9.3,209.67,209.48,7.29]
[1757080335787,2.03359957,209.51,209.48,7.29]
[1757080335989,2.03359957,209.49,209.48,7.29]
[1757080336487,2.03359957,209.49,209.4,7.29]
[1757080336690,2.03359957,209.44,209.37,7.29]
[1757080336892,2.03359957,209.45,209.4,7.29]
[1757080337083,321.17,209.73,209.42,7.29]
[1757080337278,14.31,209.71,209.44,7.29]
[1757080337484,5.5313766,209.57,209.44,7.29]
[1757080337687,7.52937454,209.56,209.44,7.29]
[1757080337888,7.52937454,209.55,209.44,7.29]
[1757080338090,7.52937454,209.54,209.44,7.29]
[1757080338291,5.5313766,209.59,209.44,7.29]
[1757080338593,7.49161271,209.58,209.44,7.29]
[1757080338892,7.49161271,209.57,209.45,7.96]
[1757080339093,5.5313766,209.63,209.47,7.96]
[1757080339285,7.49117861,209.62,209.5,5.5313766]
[1757080339485,5.28396258,209.58,209.51,7.96]
[1757080339887,7.90326353,209.64,209.51,7.96]
[1757080340092,7.90326353,209.64,209.53,7.96]
[1757080340286,7.90326353,209.64,209.55,7.96]
[1757080340483,7.90326353,209.64,209.56,5.5313766]
[1757080340689,3.95993187,209.72,209.61,66.7721]
[1757080340886,7.46785017,209.71,209.62,7.96]
[1757080341086,7.46749407,209.7,209.62,7.96]
[1757080341282,3.65606913,209.69,209.62,7.96]
[1757080341488,3.80881519,209.68,209.56,7.96]
[1757080341690,3.80881519,209.67,209.51,7.96]
[1757080341892,3.80881519,209.67,209.52,5.5313766]
[1757080342092,3.80881519,209.67,209.53,7.96]
[1757080342290,3.95993187,209.72,209.59,7.96]
[1757080342592,3.95993187,209.72,209.61,7.96]
[1757080343186,3.95993187,209.72,209.62,4.2922]
[1757080343387,3.95993187,209.72,209.61,7.96]
[1757080343592,3.95993187,209.72,209.61,74.7323]
[1757080343792,3.95993187,209.72,209.61,79.0247]
[1757080343988,3.95993187,209.72,209.61,7.96]
[1757080344591,3.95993187,209.72,209.65,7.96]
[1757080345498,3.95993187,209.72,209.6,7.96]
[1757080345686,7.76230382,209.71,209.6,7.96]
[1757080345886,3.95993187,209.71,209.6,7.96]
[1757080346596,3.8017845,209.7,209.58,4.2931]
[1757080346796,3.95993187,209.71,209.58,4.2931]
[1757080346999,3.95993187,209.71,209.61,74.7327]
[1757080347196,3.95993187,209.71,209.62,66.7674]
[1757080347501,3.95993187,209.71,209.62,66.7695]
[1757080347694,3.95993187,209.71,209.68,7.96]
[1757080347895,3.95993187,209.71,209.68,66.75]
[1757080348099,3.95993187,209.71,209.69,71.0381]
[1757080348293,3.95993187,209.71,209.64,7.96]
[1757080348489,3.95993187,209.71,209.57,7.96]
[1757080348800,3.80042817,209.7,209.6,66.776]
[1757080348993,3.95993187,209.71,209.65,66.76]
[1757080349193,3.95993187,209.71,209.61,137.64]
[1757080349496,13.12073591,209.7,209.55,7.96]
[1757080349791,7.58935931,209.69,209.61,66.7727]
[1757080349991,3.78841808,209.68,209.62,66.7694]
[1757080350192,3.78841808,209.67,209.63,7.96]
[1757080350394,3.78841808,209.66,209.63,12.252]
[1757080350586,3.95993187,209.7,209.64,66.7628]
[1757080350796,3.78905894,209.69,209.65,7.96]
[1757080350990,3.95993187,209.7,209.6,7.96]
[1757080351189,3.78856734,209.69,209.6,7.96]
[1757080351399,3.78856734,209.68,209.6,7.96]
[1757080351598,3.78856734,209.67,209.6,7.96]
[1757080351798,3.78856734,209.66,209.56,66.7888]
[1757080351998,3.78856734,209.65,209.54,7.96]
[1757080352199,3.78856734,209.64,209.55,66.7915]
[1757080352393,3.78856734,209.64,209.57,4.2932]
[1757080352698,3.78856734,209.64,209.54,7.96]
[1757080353099,3.78856734,209.63,209.54,7.96]
[1757080353296,3.78856734,209.62,209.54,7.96]
[1757080353502,3.78856734,209.61,209.5,315.08]
[1757080353800,3.78856734,209.6,209.51,66.8046]
[1757080353995,3.78856734,209.59,209.51,66.8046]
[1757080354192,3.78856734,209.58,209.51,66.8046]
[1757080354399,3.78856734,209.57,209.51,66.8046]
[1757080354593,5.5313766,209.62,209.51,66.8046]
[1757080354793,3.78760599,209.61,209.55,66.7917]
[1757080355117,3.78760599,209.6,209.55,66.7917]
[1757080355295,3.95993187,209.64,209.56,7.96]
[1757080355595,3.78709812,209.63,209.56,7.96]
[1757080355791,3.78709812,209.62,209.59,4.2928]
[1757080356003,3.78709812,209.61,209.59,4.2928]
[1757080356301,3.95993187,209.64,209.62,7.96]
[1757080356800,3.95993187,209.64,209.63,4.2921]
[1757080356997,7.74658579,209.64,209.59,66.7789]
[1757080357196,3.95993187,209.64,209.59,66.7789]
[1757080357399,3.95993187,209.64,209.6,66.7754]
[1757080357600,3.95993187,209.64,209.63,7.96]
[1757080358001,3.95993187,209.64,209.63,8.44]
[1757080359402,3.95993187,209.64,209.63,7.96]
[1757080359703,3.187e-05,209.64,209.63,8.44]
[1757080359904,7.66,209.77,209.69,66.7474]
[1757080360092,7.58710294,209.76,209.68,128.98]
[1757080360296,7.58710294,209.75,209.64,129.06]
[1757080360499,3.78760079,209.74,209.64,129.06]
[1757080360803,7.66,209.72,209.61,195.8528]
[1757080361000,3.78760079,209.71,209.63,66.7645]
[1757080361194,3.78760079,209.7,209.67,66.7534]
[1757080361404,7.66,209.76,209.67,129.02]
[1757080361601,3.7897965,209.75,209.7,4.2905]
[1757080361805,3.7897965,209.74,209.7,4.2905]
[1757080361996,3.7897965,209.73,209.7,4.2905]
[1757080362192,3.7897965,209.72,209.7,4.2905]
[1757080362392,7.66,209.76,209.65,129.02]
[1757080362600,3.79176096,209.75,209.63,66.7665]
[1757080362902,3.79176096,209.74,209.67,4.2912]
[1757080363103,3.79176096,209.73,209.61,80.2632766]